bitfinex/quotes_SOLUSD_20250415
["timestamp","ask_amount","ask_price","bid_price","bid_amount"]
[1744727325303,53.78931132,130.4,130.31,258.741]
[1744727325592,53.78931132,130.37,130.32,53.78931132]
[1744727325914,71.64931132,130.41,130.33,53.78931132]
[1744727325915,53.78931132,130.38,130.33,53.78931132]
[1744727326113,17.86,130.41,130.37,53.78931132]
[1744727326319,71.64931132,130.41,130.36,53.78931132]
[1744727326614,53.78931132,130.39,130.35,53.78931132]
[1744727326816,7.6687,130.4,130.35,53.78931132]
[1744727327115,25.5283,130.41,130.37,53.78931132]
[1744727327493,79.31761132,130.41,130.36,53.78931132]
[1744727327718,25.5283,130.41,130.37,53.78931132]
[1744727327905,53.78931132,130.39,130.35,53.78931132]
[1744727328213,53.78931132,130.38,130.33,53.78931132]
[1744727328912,7.6704,130.37,130.33,53.78931132]
[1744727329226,53.78931132,130.35,130.3,53.78931132]
[1744727329397,53.78931132,130.36,130.31,53.78931132]
[1744727329721,53.78931132,130.36,130.27,61.46531132]
[1744727329722,53.78931132,130.36,130.32,53.78931132]
[1744727330025,53.78931132,130.36,130.31,53.78931132]
[1744727330216,53.78931132,130.36,130.32,53.78931132]
[1744727330417,53.78931132,130.36,130.31,53.78931132]
[1744727330798,53.78931132,130.37,130.32,53.78931132]
[1744727331313,53.78931132,130.36,130.28,7.6755]
[1744727331523,53.78931132,130.33,130.26,25.5365]
[1744727331726,53.78931132,130.33,130.28,53.78931132]
[1744727331896,53.78931132,130.35,130.3,53.78931132]
[1744727332402,53.78931132,130.36,130.31,53.78931132]
[1744727332713,53.78931132,130.35,130.3,53.78931132]
[1744727332918,53.78931132,130.35,130.26,71.51844886]
[1744727332919,53.78931132,130.32,130.26,7.6765]
[1744727333102,53.78931132,130.32,130.27,53.78931132]
[1744727334004,7.6737,130.32,130.27,53.78931132]
[1744727334211,61.46301132,130.32,130.27,53.78931132]
[1744727334610,53.78931132,130.3,130.24,0.03]
[1744727334799,53.78931132,130.26,130.24,0.03]
[1744727335118,53.78931132,130.27,130.24,0.03]
[1744727335417,53.78931132,130.28,130.24,0.03]
[1744727335929,53.78931132,130.27,130.24,0.03]
[1744727336228,53.78931132,130.26,130.24,0.03]
[1744727336403,7.6767,130.27,130.24,0.03]
[1744727336404,53.78931132,130.25,130.24,0.03]
[1744727337225,53.78931132,130.27,130.24,0.03]
[1744727337427,53.78931132,130.29,130.24,53.81931132]
[1744727337731,53.78931132,130.28,130.24,0.03]
[1744727337899,53.78931132,130.26,130.24,0.03]
[1744727338105,61.46681132,130.25,130.24,0.03]
[1744727338407,79.34681132,130.25,130.24,0.03]
[1744727338819,25.5575,130.25,130.16,33.7125]
[1744727339135,25.5575,130.25,130.23,53.78931132]
[1744727339136,17.88,130.25,130.23,53.78931132]
[1744727339301,17.88,130.25,130.16,71.56924886]
[1744727339502,17.88,130.25,130.22,53.78931132]
[1744727339929,325.06181132,130.3,130.24,53.78931132]
[1744727340101,263.5977,130.3,130.26,53.78931132]
[1744727340303,143.06261132,130.33,130.28,53.78931132]
[1744727340601,53.78931132,130.31,130.26,53.78931132]
[1744727341027,53.78931132,130.31,130.25,7.6771]
[1744727341028,53.78931132,130.3,130.25,53.78931132]
[1744727341398,53.78931132,130.31,130.24,7.6778]
[1744727341603,53.78931132,130.32,130.27,53.78931132]
[1744727341901,7.6733,130.33,130.28,53.78931132]
[1744727341902,61.46261132,130.33,130.28,53.78931132]
[1744727342128,61.46261132,130.33,130.24,19.1953]
[1744727342312,53.78931132,130.31,130.26,53.78931132]
[1744727342515,53.78931132,130.29,130.24,53.78931132]
[1744727342711,53.78931132,130.3,130.25,53.78931132]
[1744727343023,61.46261132,130.33,130.28,53.78931132]
[1744727343413,53.78931132,130.32,130.23,26.8755]
[1744727343616,53.78931132,130.32,130.27,53.78931132]
[1744727343831,53.78931132,130.31,130.26,53.78931132]
[1744727344827,53.78931132,130.32,130.27,53.78931132]
[1744727345031,6.5579,130.34,130.3,53.78931132]
[1744727345201,6.5579,130.34,130.3,35.60634037]
[1744727345202,81.6,130.33,130.3,35.60634037]
[1744727345803,81.6,130.33,130.31,35.60634037]
[1744727346002,81.6,130.33,130.3,35.60634037]
[1744727346229,81.6,130.33,130.27,35.60634037]
[1744727346230,81.6,130.33,130.28,7.6757]
[1744727346412,81.6,130.33,130.29,35.60634037]
[1744727346621,81.6,130.33,130.31,35.60634037]
[1744727347039,81.6,130.33,130.28,7.6757]
[1744727347212,117.20634037,130.33,130.28,43.28204037]
[1744727347706,81.6,130.33,130.29,35.60634037]
[1744727347909,81.6,130.33,130.3,35.60634037]
[1744727348113,81.6,130.33,130.31,35.60634037]
[1744727348314,81.6,130.33,130.32,43.27974037]
[1744727348533,35.60634037,130.38,130.32,43.27974037]
[1744727348713,35.60634037,130.38,130.34,35.60634037]
[1744727348913,281.34924037,130.39,130.34,35.60634037]
[1744727349141,289.01864037,130.39,130.34,35.60634037]
[1744727349615,253.4123,130.39,130.34,35.60634037]
[1744727349817,7.6694,130.39,130.35,35.60634037]
[1744727350119,17.88,130.4,130.37,35.60634037]
[1744727350316,7.6672,130.43,130.39,35.60634037]
[1744727350515,6.3137,130.44,130.4,35.60634037]
[1744727350713,17.88,130.45,130.42,35.60634037]
[1744727350919,35.60634037,130.44,130.37,26.0]
[1744727351133,35.60634037,130.44,130.39,35.60634037]
[1744727351337,53.48634037,130.45,130.4,35.60634037]
[1744727351851,35.60634037,130.44,130.39,35.60634037]
[1744727352139,17.88,130.45,130.41,35.60634037]
[1744727352343,25.5458,130.45,130.41,35.60634037]
[1744727352549,53.48634037,130.45,130.4,43.27494037]
[1744727352740,17.88,130.45,130.41,35.60634037]
[1744727352923,17.88,130.45,130.42,35.60634037]
[1744727353127,17.88,130.45,130.41,53.90986245]
[1744727353345,79.45566245,130.45,130.4,61.57846245]
[1744727353530,17.88,130.45,130.41,53.90986245]
[1744727353844,0.0001,130.47,130.43,53.90986245]
[1744727354225,53.90996245,130.47,130.42,53.90986245]
[1744727354746,53.90986245,130.45,130.41,53.90986245]
[1744727354922,53.90986245,130.46,130.41,53.90986245]
[1744727355334,53.90986245,130.45,130.4,61.57856245]
[1744727355515,26.8261,130.47,130.39,61.57896245]
[1744727355722,53.90986245,130.44,130.4,53.90986245]
[1744727356215,81.6,130.46,130.4,53.90986245]
[1744727356418,7.6663,130.45,130.4,53.90986245]
[1744727356618,53.90986245,130.44,130.4,61.57836245]
[1744727356842,81.6,130.46,130.43,53.90986245]
[1744727357024,81.6,130.46,130.44,53.90986245]
[1744727357224,0.0001,130.47,130.45,53.90986245]
[1744727357424,0.0001,130.47,130.46,53.90986245]
[1744727358527,0.0001,130.47,130.46,61.57496245]
[1744727359740,0.0001,130.47,130.46,80.22461131]
[1744727360530,0.0001,130.48,130.46,134.13447376]
[1744727360729,0.0001,130.48,130.47,133.8197249]
[1744727360926,0.063,130.51,130.47,126.46937376]
[1744727361142,0.063,130.51,130.5,79.90986245]
[1744727361344,0.063,130.52,130.51,18.64964886]
[1744727361564,0.063,130.52,130.51,53.90986245]
[1744727361848,0.063,130.52,130.48,18.64964886]
[1744727362053,0.063,130.52,130.51,79.90986245]
[1744727362425,0.063,130.52,130.51,87.57206245]
[1744727363459,0.063,130.52,130.51,79.90986245]
[1744727363751,0.063,130.52,130.49,53.90986245]
[1744727363927,53.97286245,130.52,130.47,7.6645]
[1744727364125,0.063,130.52,130.46,7.6649]
[1744727364440,53.90986245,130.5,130.45,53.90986245]
[1744727364642,53.90986245,130.5,130.46,53.90986245]
[1744727364855,0.063,130.52,130.49,53.90986245]
[1744727365155,0.063,130.52,130.51,53.90986245]
[1744727365536,0.063,130.52,130.51,61.57206245]
[1744727366355,0.063,130.52,130.51,87.57206245]
[1744727367553,0.063,130.52,130.51,33.6622]
[1744727367756,0.063,130.52,130.51,87.57206245]
[1744727368055,0.063,130.52,130.48,19.1592]
[1744727368453,0.063,130.52,130.51,53.90986245]
[1744727369244,0.063,130.52,130.51,61.57206245]
[1744727370671,0.063,130.52,130.51,87.57206245]
[1744727371130,0.063,130.52,130.46,19.1628]
[1744727371339,0.063,130.52,130.51,53.90986245]
[1744727372231,0.063,130.52,130.51,79.90986245]
[1744727372432,0.063,130.52,130.51,98.55951131]
[1744727372951,0.063,130.52,130.51,26.0]
[1744727373259,0.063,130.52,130.51,87.57206245]
[1744727373561,0.063,130.58,130.52,18.64964886]
[1744727373756,0.063,130.58,130.57,53.90986245]
[1744727374844,0.063,130.58,130.56,53.90986245]
[1744727375048,0.063,130.58,130.55,53.90986245]
[1744727375267,0.063,130.58,130.48,6.225]
[1744727375268,35.53298026,130.58,130.48,6.225]
[1744727375461,35.46998026,130.54,130.49,7.6634]
[1744727375670,35.46998026,130.52,130.45,19.1629]
[1744727375962,35.46998026,130.52,130.43,17.82]
[1744727375963,35.46998026,130.52,130.47,61.46998026]
[1744727376163,35.46998026,130.53,130.48,35.46998026]
[1744727376332,35.46998026,130.54,130.49,35.46998026]
[1744727376532,35.46998026,130.51,130.46,43.13508026]
[1744727377063,35.46998026,130.55,130.42,1.6511]
[1744727377064,35.46998026,130.47,130.42,35.46998026]
[1744727377261,61.5652743,130.48,130.43,7.6669]
[1744727377578,61.5652743,130.48,130.43,53.9011743]
[1744727377766,53.9011743,130.46,130.41,53.9011743]
[1744727378134,53.9011743,130.43,130.38,7.6698]
[1744727378445,53.9011743,130.43,130.31,6.1426]
[1744727378446,53.9011743,130.39,130.34,53.9011743]
[1744727378642,53.9011743,130.39,130.35,26.0]
[1744727379040,53.9011743,130.4,130.35,79.9011743]
[1744727379270,6.2254,130.43,130.36,61.5719743]
[1744727379271,53.9011743,130.41,130.36,61.5719743]
[1744727379443,53.9011743,130.39,130.34,53.9011743]
[1744727379832,53.9011743,130.39,130.34,79.9011743]
[1744727380039,53.9011743,130.4,130.35,53.9011743]
[1744727380638,61.5687743,130.42,130.36,53.9011743]
[1744727380834,53.9011743,130.4,130.35,53.9011743]
[1744727381049,53.9011743,130.41,130.36,53.9011743]
[1744727381236,53.9011743,130.42,130.37,53.9011743]
[1744727381649,53.9011743,130.41,130.36,61.5718743]
[1744727381955,39.8925,130.43,130.37,53.9011743]
[1744727382161,17.82,130.44,130.39,53.9011743]
[1744727382453,17.82,130.44,130.41,53.9011743]
[1744727382669,71.7211743,130.44,130.39,53.9011743]
[1744727382884,17.82,130.44,130.4,53.9011743]
[1744727383172,17.82,130.44,130.41,53.9011743]
[1744727383347,40.3159,130.47,130.41,61.5688743]
[1744727383548,94.2170743,130.47,130.42,53.9011743]
[1744727383947,53.9011743,130.46,130.4,7.6686]
[1744727384143,53.9011743,130.43,130.38,7.6698]
[1744727384344,53.9011743,130.42,130.37,33.6702]
[1744727384551,53.9011743,130.42,130.37,87.5713743]
[1744727385107,53.9011743,130.43,130.38,53.9011743]
[1744727385283,53.9011743,130.45,130.4,53.9011743]
[1744727385576,61.5674743,130.44,130.39,53.9011743]
[1744727386263,61.5674743,130.44,130.38,7.6695]
[1744727386475,53.9011743,130.4,130.35,7.6716]
[1744727386775,53.9011743,130.41,130.37,53.9011743]
[1744727387474,53.9011743,130.43,130.39,53.9011743]
[1744727387780,53.9011743,130.43,130.38,53.9011743]
[1744727388365,53.9011743,130.42,130.37,61.5713743]
[1744727388666,53.9011743,130.41,130.36,53.9011743]
[1744727388853,53.9011743,130.42,130.37,53.9011743]
[1744727389377,61.5690743,130.42,130.37,53.9011743]
[1744727389560,53.9011743,130.43,130.38,53.9011743]
[1744727389767,53.9011743,130.42,130.37,53.9011743]
[1744727390273,53.9011743,130.43,130.38,53.9011743]
[1744727390581,53.9011743,130.42,130.37,53.9011743]
[1744727391368,81.6,130.43,130.41,53.9011743]
[1744727391570,81.6,130.43,130.36,26.8486]
[1744727391876,81.6,130.42,130.4,53.9011743]
[1744727392048,6.6509,130.47,130.41,53.9011743]
[1744727392254,7.6642,130.48,130.45,53.9011743]
[1744727392670,107.0834,130.49,130.45,53.9011743]
[1744727392862,99.42,130.49,130.45,53.9011743]
[1744727393778,17.82,130.49,130.46,53.9011743]
[1744727393956,71.7211743,130.49,130.44,53.9011743]
[1744727394672,53.9011743,130.48,130.43,26.0]
[1744727394980,53.9011743,130.46,130.41,53.9011743]
[1744727395284,53.9011743,130.42,130.37,7.6704]
[1744727395483,53.9011743,130.41,130.37,7.6704]
[1744727395680,53.9011743,130.42,130.37,61.5715743]
[1744727396776,53.9011743,130.43,130.38,53.9011743]
[1744727398078,53.9011743,130.43,130.38,61.5704743]
[1744727398285,61.5681743,130.43,130.38,61.5704743]
[1744727398454,53.9011743,130.41,130.36,33.6706]
[1744727398654,7.667,130.43,130.38,53.9011743]
[1744727398655,53.9011743,130.43,130.38,53.9011743]
[1744727398877,53.9011743,130.42,130.37,53.9011743]
[1744727399079,53.9011743,130.43,130.38,53.9011743]
[1744727399272,35.56350133,130.43,130.38,35.56350133]
[1744727399473,35.56350133,130.42,130.38,35.56350133]
[1744727399778,43.23000133,130.44,130.39,35.56350133]
[1744727400117,35.56350133,130.43,130.38,43.23320133]
[1744727400270,35.56350133,130.42,130.38,7.6697]
[1744727400593,35.56350133,130.42,130.37,33.6703]
[1744727400766,35.56350133,130.41,130.34,26.0]
[1744727400969,81.6,130.4,130.38,35.56350133]
[1744727401366,26.0,130.46,130.4,18.64964886]
[1744727401367,81.6,130.46,130.4,18.64964886]
[1744727401577,81.6,130.46,130.42,35.56350133]
[1744727401785,117.16350133,130.46,130.41,35.56350133]
[1744727402087,35.56350133,130.43,130.38,43.23310133]
[1744727402386,35.56350133,130.43,130.32,23.9017]
[1744727402387,35.56350133,130.39,130.32,19.1822]
[1744727402556,35.56350133,130.38,130.33,61.56350133]
[1744727402759,35.56350133,130.4,130.35,35.56350133]
[1744727402961,81.6,130.42,130.39,35.56350133]
[1744727403181,35.56350133,130.43,130.34,54.21315019]
[1744727403590,26.0,130.45,130.31,1.6478]
[1744727403591,35.56350133,130.39,130.31,1.6478]
[1744727403784,44.64964886,130.41,130.31,9.3215]
[1744727403785,35.56350133,130.36,130.31,9.3215]
[1744727403975,43.23470133,130.36,130.31,0.063]
[1744727404165,35.56350133,130.36,130.31,43.30040133]
[1744727404360,35.56350133,130.34,130.31,0.063]
[1744727404767,35.56350133,130.36,130.31,35.62650133]
[1744727404965,35.56350133,130.35,130.31,0.063]
[1744727405185,35.56350133,130.34,130.31,0.063]
[1744727405692,59.222,130.38,130.31,0.063]
[1744727405869,35.56350133,130.36,130.31,43.30010133]
[1744727406062,43.23500133,130.36,130.31,43.30010133]
[1744727406485,35.56350133,130.38,130.33,35.56350133]
[1744727406686,7.6704,130.38,130.34,35.56350133]
[1744727406988,35.56350133,130.37,130.32,35.56350133]
[1744727407183,7.6704,130.38,130.31,7.7366]
[1744727407381,35.56350133,130.35,130.31,61.62650133]
[1744727407579,35.56350133,130.33,130.31,0.063]
[1744727408085,43.23530133,130.35,130.31,0.063]
[1744727408589,35.56350133,130.34,130.31,0.063]
[1744727408763,35.56350133,130.33,130.31,0.063]
[1744727409867,35.56350133,130.32,130.31,0.063]
[1744727410185,43.23690133,130.32,130.31,0.063]
[1744727411501,81.6,130.36,130.31,0.063]
[1744727411692,7.6698,130.38,130.33,35.56350133]
[1744727411895,35.56350133,130.37,130.32,35.56350133]
[1744727412097,99.38,130.39,130.35,35.56350133]
[1744727412395,35.56350133,130.43,130.38,35.56350133]
[1744727412592,25.4464,130.44,130.4,35.56350133]
[1744727412896,35.56350133,130.43,130.35,18.64964886]
[1744727413295,53.93778412,130.43,130.38,53.93778412]
[1744727413484,17.78,130.44,130.4,53.93778412]
[1744727413684,17.78,130.44,130.36,26.0]
[1744727413685,53.93778412,130.43,130.36,26.0]
[1744727413998,61.60508412,130.43,130.36,26.0]
[1744727414175,53.93778412,130.41,130.36,26.0]
[1744727414372,53.93778412,130.4,130.35,61.60918412]
[1744727414604,53.93778412,130.38,130.34,33.6721]
[1744727414900,53.93778412,130.41,130.36,53.93778412]
[1744727415131,81.6,130.42,130.34,52.8527]
[1744727415290,79.38438412,130.44,130.39,53.93778412]
[1744727415482,17.78,130.44,130.4,53.93778412]
[1744727416293,7.665,130.47,130.43,53.93778412]
[1744727416593,53.93778412,130.46,130.4,7.6682]
[1744727416791,53.93778412,130.46,130.42,53.93778412]
[1744727417003,53.93778412,130.43,130.34,53.93778412]
[1744727417297,26.0,130.46,130.38,53.93778412]
[1744727417503,53.93778412,130.44,130.39,53.93778412]
[1744727418079,53.93778412,130.43,130.38,53.93778412]
[1744727418283,61.60428412,130.44,130.39,61.60698412]
[1744727418794,53.93778412,130.43,130.39,7.6692]
[1744727419006,53.93778412,130.44,130.39,61.60698412]
[1744727419213,61.60428412,130.44,130.39,61.60698412]
[1744727419416,7.6665,130.44,130.39,61.60698412]
[1744727419587,61.60428412,130.44,130.39,61.60698412]
[1744727420208,53.93778412,130.45,130.41,53.93778412]
[1744727420481,87.60298412,130.46,130.42,53.93778412]
[1744727420907,33.6652,130.46,130.42,53.93778412]
[1744727421210,17.72,130.49,130.44,53.93778412]
[1744727421430,89.2623,130.51,130.47,53.93778412]
[1744727421584,81.6,130.51,130.47,53.93778412]
[1744727422098,81.6,130.51,130.43,18.64964886]
[1744727422099,81.6,130.51,130.49,53.93778412]
[1744727422288,81.6,130.51,130.49,61.60058412]
[1744727422484,135.53778412,130.51,130.44,19.1658]
[1744727422687,53.93778412,130.46,130.42,33.6675]
[1744727422890,81.6,130.49,130.42,79.93778412]
[1744727423107,135.53778412,130.48,130.43,53.93778412]
[1744727423413,53.93778412,130.46,130.41,61.60568412]
[1744727423624,53.93778412,130.43,130.4,7.6684]
[1744727424085,53.93778412,130.43,130.36,18.64964886]
[1744727424290,81.6,130.45,130.4,53.93778412]
[1744727424519,81.6,130.45,130.42,53.93778412]
[1744727424816,17.72,130.47,130.44,53.93778412]
[1744727424993,81.6,130.48,130.46,53.93778412]
[1744727425194,81.6,130.48,130.44,26.0]
[1744727425412,81.6,130.48,130.44,79.93778412]
[1744727425614,143.20208412,130.48,130.43,53.93778412]
[1744727425788,53.93778412,130.47,130.42,53.93778412]
[1744727426116,89.2643,130.48,130.41,26.0]
[1744727426117,81.6,130.48,130.44,53.93778412]
[1744727426291,81.6,130.48,130.46,7.6651]
[1744727426486,81.6,130.48,130.46,61.60288412]
[1744727426686,81.6,130.48,130.46,53.93778412]
[1744727426890,81.6,130.52,130.47,53.93778412]
[1744727427111,81.6,130.52,130.49,53.93778412]
[1744727427412,382.45748412,130.56,130.51,53.93778412]
[1744727427607,320.86,130.56,130.52,53.93778412]
[1744727427803,135.53778412,130.56,130.52,53.93778412]
[1744727428008,143.19728412,130.56,130.51,53.93778412]
[1744727428196,53.93778412,130.55,130.5,53.93778412]
[1744727428520,81.6,130.56,130.52,53.93778412]
[1744727428827,135.53778412,130.56,130.51,53.93778412]
[1744727429118,53.93778412,130.53,130.48,7.664]
[1744727429422,53.93778412,130.52,130.48,7.664]
[1744727429598,53.93778412,130.51,130.46,53.93778412]
[1744727430213,53.93778412,130.48,130.45,7.6655]
[1744727430396,53.93778412,130.46,130.41,53.93778412]
[1744727430716,53.93778412,130.47,130.42,53.93778412]
[1744727430909,53.93778412,130.47,130.41,33.6681]
[1744727430910,81.6,130.5,130.46,53.93778412]
[1744727431215,89.2628,130.5,130.46,53.93778412]
[1744727431400,81.6,130.5,130.46,53.93778412]
[1744727431803,81.6,130.5,130.44,26.0]
[1744727431999,53.93778412,130.51,130.47,72.58743298]
[1744727432217,81.6,130.54,130.5,53.93778412]
[1744727432390,81.6,130.54,130.46,18.64964886]
[1744727432391,53.93778412,130.51,130.47,7.6645]
[1744727432586,53.93778412,130.52,130.47,61.60228412]
[1744727432821,53.93778412,130.51,130.47,7.6645]
[1744727433018,53.93778412,130.5,130.45,7.6657]
[1744727433322,79.93778412,130.48,130.37,1.0]
[1744727433502,53.93778412,130.43,130.34,80.79058412]
[1744727433821,53.93778412,130.42,130.37,53.93778412]
[1744727434016,53.93778412,130.39,130.34,53.93778412]
[1744727434223,53.93778412,130.37,130.32,7.7363]
[1744727434425,53.93778412,130.38,130.33,53.93778412]
[1744727434594,53.93778412,130.39,130.34,53.93778412]
[1744727434795,79.93778412,130.4,130.35,53.93778412]
[1744727435016,53.93778412,130.4,130.35,53.93778412]
[1744727435227,43.72,130.43,130.39,53.93778412]
[1744727435603,17.72,130.43,130.4,53.93778412]
[1744727435897,100.24964886,130.47,130.42,53.93778412]
[1744727435898,81.6,130.47,130.42,53.93778412]
[1744727436103,51.3842,130.48,130.43,53.93778412]
[1744727436301,17.72,130.48,130.46,53.93778412]
[1744727437098,17.72,130.48,130.45,53.93778412]
[1744727437324,17.72,130.48,130.46,53.93778412]
[1744727437519,24.3496,130.53,130.46,53.93778412]
[1744727437696,71.65778412,130.53,130.48,53.93778412]
[1744727437897,17.72,130.53,130.49,53.93778412]
[1744727438219,17.72,130.53,130.5,53.93778412]
[1744727438916,253.4485,130.57,130.52,53.93778412]
[1744727439123,53.93778412,130.56,130.51,53.93778412]
[1744727439319,53.93778412,130.55,130.5,61.60058412]
[1744727439614,246.8189,130.57,130.5,61.60058412]
[1744727439817,53.93778412,130.55,130.5,61.60058412]
[1744727440399,53.93778412,130.56,130.49,7.6634]
[1744727440596,81.6,130.55,130.51,53.93778412]
[1744727440828,81.6,130.55,130.52,53.93778412]
[1744727441833,53.93778412,130.54,130.48,44.64964886]
[1744727442008,81.6,130.53,130.5,53.93778412]
[1744727442322,81.6,130.53,130.47,53.93778412]
[1744727442323,53.93778412,130.52,130.47,53.93778412]
[1744727442616,81.6,130.53,130.46,26.0]
[1744727442617,135.53778412,130.53,130.49,53.93778412]
[1744727442824,81.6,130.53,130.49,53.93778412]
[1744727443025,81.6,130.53,130.45,45.47974886]
[1744727443026,26.0,130.56,130.52,53.93778412]
[1744727443521,51.4415,130.58,130.53,53.93778412]
[1744727443724,51.4415,130.58,130.54,53.93778412]
[1744727443725,17.783,130.58,130.54,53.93778412]
[1744727443929,17.783,130.58,130.53,26.0]
[1744727444112,17.783,130.58,130.55,53.93778412]
[1744727445400,17.783,130.58,130.53,26.0]
[1744727445600,17.783,130.58,130.56,53.93778412]
[1744727445801,17.783,130.58,130.56,61.59698412]
[1744727446222,0.063,130.58,130.57,53.93778412]
[1744727446420,0.063,130.58,130.56,7.6592]
[1744727446728,0.063,130.58,130.57,53.93778412]
[1744727446930,0.063,130.58,130.56,61.59698412]
[1744727447230,54.00078412,130.58,130.53,53.93778412]
[1744727447531,53.93778412,130.54,130.47,7.8866]
[1744727447733,53.93778412,130.54,130.49,53.93778412]
[1744727447905,53.93778412,130.55,130.48,7.664]
[1744727448105,17.64,130.56,130.53,53.93778412]
[1744727448323,0.063,130.58,130.55,53.93778412]
[1744727448528,0.063,130.58,130.57,72.58743298]
[1744727448827,0.063,130.6,130.59,26.0]
[1744727449035,0.063,130.6,130.59,98.58743298]
[1744727449705,0.063,130.6,130.59,106.24493298]
[1744727449914,54.00078412,130.6,130.52,28.4689]
[1744727450152,53.93778412,130.55,130.47,1.6532]
[1744727450328,26.0,130.58,130.48,18.64964886]
[1744727450630,26.0,130.58,130.51,53.93778412]
[1744727450926,53.93778412,130.56,130.51,53.93778412]
[1744727451300,61.59708412,130.56,130.51,53.93778412]
[1744727451500,53.93778412,130.56,130.51,53.93778412]
[1744727451704,79.93778412,130.58,130.53,53.93778412]
[1744727452332,53.93778412,130.57,130.52,53.93778412]
[1744727452828,61.59678412,130.57,130.52,53.93778412]
[1744727453205,53.93778412,130.55,130.49,52.31294886]
[1744727453403,53.93778412,130.54,130.49,79.93778412]
[1744727453740,61.59678412,130.57,130.52,53.93778412]
[1744727454330,61.59678412,130.57,130.53,53.93778412]
[1744727454331,7.659,130.57,130.53,53.93778412]
[1744727454547,7.659,130.57,130.52,53.93778412]
[1744727454717,53.93778412,130.56,130.51,53.93778412]
[1744727455032,53.93778412,130.53,130.48,53.93778412]
[1744727455629,26.8096,130.55,130.49,53.93778412]
[1744727455836,7.6599,130.55,130.51,53.93778412]
[1744727456215,7.6599,130.55,130.5,53.93778412]
[1744727456622,53.93778412,130.54,130.49,53.93778412]
[1744727456838,7.661,130.53,130.49,53.93778412]
[1744727457234,7.661,130.53,130.48,53.93778412]
[1744727457414,7.661,130.53,130.49,53.93778412]
[1744727457739,7.6594,130.56,130.52,53.93778412]
[1744727458046,71.57778412,130.59,130.54,53.93778412]
[1744727458345,25.2978,130.59,130.55,53.93778412]
[1744727458519,25.2978,130.59,130.53,18.64964886]
[1744727458715,7.6587,130.57,130.52,53.93778412]
[1744727459031,53.93778412,130.55,130.5,61.60048412]
[1744727460323,53.93778412,130.53,130.49,33.6631]
[1744727460532,61.59818412,130.54,130.49,87.60088412]
[1744727460839,61.59818412,130.54,130.49,79.93778412]
[1744727461438,61.59818412,130.54,130.49,87.60098412]
[1744727461614,7.6604,130.54,130.49,26.0]
[1744727461810,18.64964886,130.58,130.49,26.0]
[1744727461811,7.6587,130.57,130.49,26.0]
[1744727462014,53.93778412,130.54,130.49,26.0]
[1744727462237,143.19878412,130.53,130.44,0.063]
[1744727462445,53.93778412,130.51,130.46,53.93778412]
[1744727462668,81.6,130.52,130.49,53.93778412]
[1744727462818,81.6,130.55,130.51,53.93778412]
[1744727463146,135.53778412,130.55,130.5,53.93778412]
[1744727463515,143.19778412,130.55,130.5,53.93778412]
[1744727463961,53.93778412,130.52,130.45,7.6657]
[1744727464159,53.93778412,130.48,130.44,0.063]
[1744727464335,53.93778412,130.45,130.44,0.063]
[1744727464751,53.93778412,130.46,130.44,0.063]
[1744727465127,17.64,130.47,130.44,0.063]
[1744727465337,135.53778412,130.5,130.46,53.93778412]
[1744727465550,43.64,130.52,130.48,53.93778412]
[1744727465725,17.64,130.52,130.48,53.93778412]
[1744727465927,81.6,130.54,130.51,53.93778412]
[1744727466229,17.64,130.58,130.54,7.6604]
[1744727466447,17.64,130.58,130.56,53.93778412]
[1744727466635,0.063,130.6,130.57,53.93778412]
[1744727466836,0.063,130.6,130.59,53.93778412]
[1744727467025,0.063,130.6,130.59,72.58743298]
[1744727467243,0.063,130.6,130.59,53.93778412]
[1744727467631,0.063,130.6,130.57,79.93778412]
[1744727467955,53.93778412,130.59,130.54,61.59818412]
[1744727468256,54.00078412,130.6,130.56,53.93778412]
[1744727468550,7.7201,130.6,130.54,53.93778412]
[1744727468725,0.063,130.6,130.54,18.64964886]
[1744727468927,0.063,130.6,130.57,53.93778412]
[1744727469157,0.063,130.6,130.58,53.93778412]
[1744727469747,0.063,130.6,130.56,53.93778412]
[1744727470161,0.063,130.6,130.55,53.93778412]
[1744727470354,54.00078412,130.6,130.55,61.59728412]
[1744727470544,53.93778412,130.59,130.54,61.59808412]